fUST/lending_fUST_20250802
["ID","MTS","AMOUNT","RATE_DAILY","PERIOD"]
[376646179,1754069467106,-1629.59,0.00024556,2]
[376646180,1754069467115,-829.9,0.00024556,2]
[376646181,1754069467125,-1243.19,0.00024556,2]
[376646182,1754069467134,-575.44,0.00024556,2]
[376646183,1754069467146,-524.08,0.00024556,2]
[376646184,1754069467156,-620.6,0.00024556,2]
[376646185,1754069467165,-460.0,0.00024556,2]
[376646186,1754069467174,-460.0,0.00024556,2]
[376646187,1754069467184,-1277.87,0.00024556,2]
[376646188,1754069467193,-600.2,0.00024556,2]
[376646189,1754069467203,-460.0,0.00024556,2]
[376646190,1754069467212,-662.37,0.00024556,2]
[376646191,1754069467221,-1085.61,0.00024556,2]
[376646192,1754069467236,-3361.66,0.00024556,2]
[376646193,1754069467246,-460.0,0.00024556,2]
[376646194,1754069467257,-1453.73,0.00024556,2]
[376646195,1754069467267,-627.63,0.00024556,2]
[376646196,1754069467277,-1282.4,0.00024556,2]
[376646197,1754069467287,-479.84,0.00024556,2]
[376646198,1754069467297,-684.14,0.00024556,2]
[376646199,1754069467307,-2414.29,0.00024556,2]
[376646200,1754069467317,-460.0,0.00024556,2]
[376646201,1754069467326,-460.0,0.00024556,2]
[376646202,1754069467335,-1524.19,0.00024556,2]
[376646203,1754069467345,-888.76,0.00024556,2]
[376646204,1754069467355,-460.0,0.00024556,2]
[376646205,1754069467365,-582.9,0.00024556,2]
[376646206,1754069467375,-460.0,0.00024556,2]
[376646207,1754069467384,-2347.88,0.00024556,2]
[376646208,1754069467394,-611.3,0.00024556,2]
[376646209,1754069467403,-1083.92,0.00024556,2]
[376646210,1754069467412,-460.0,0.00024556,2]
[376646211,1754069467422,-1187.48,0.00024556,2]
[376646212,1754069467433,-460.0,0.00024556,2]
[376646213,1754069467443,-528.38,0.00024556,2]
[376646214,1754069467452,-923.87,0.00024556,2]
[376646215,1754069467462,-1074.14,0.00024556,2]
[376646216,1754069467472,-984.64,0.00024556,2]
[376646217,1754069467487,-305.83545067,0.00024556,2]
[376646218,1754069467496,-460.0,0.00024556,2]
[376646219,1754069467506,-305.10559489,0.0002459,11]
[376646220,1754069467516,-150.0,0.000246,10]
[376646221,1754069467527,-500.0,0.000246,2]
[376646222,1754069467536,-500.0,0.00024626,9]
[376646223,1754069467546,-500.0,0.00024626,9]
[376646224,1754069467554,-306.87,0.00024638,7]
[376646225,1754069467563,-883.33,0.00024652,2]
[376646226,1754069467573,-1123.48,0.00024652,2]
[376646227,1754069467583,-460.0,0.00024652,2]
[376646228,1754069467592,-689.92,0.00024652,2]
[376646229,1754069467601,-576.55,0.00024652,2]
[376646230,1754069467610,-460.0,0.00024652,2]
[376646231,1754069467619,-460.0,0.00024652,2]
[376646232,1754069467627,-1696.22,0.00024652,2]
[376646233,1754069467642,-1250.77,0.00024652,2]
[376646234,1754069467652,-1005.51,0.00024652,2]
[376646235,1754069467662,-460.0,0.00024652,2]
[376646236,1754069467671,-500.0,0.00024652,2]
[376646237,1754069467682,-590.71,0.00024652,2]
[376646238,1754069467692,-1647.05,0.00024652,2]
[376646239,1754069467701,-794.83,0.00024652,2]
[376646240,1754069467804,-460.0,0.00024652,2]
[376646241,1754069467824,-851.59,0.00024652,2]
[376646242,1754069467834,-460.0,0.00024652,2]
[376646243,1754069467845,-460.0,0.00024652,2]
[376646244,1754069467854,-848.84,0.00024654,2]
[376646245,1754069467864,-460.0,0.00024654,2]
[376646246,1754069467873,-2449.66,0.00024654,2]
[376646247,1754069467883,-480.66,0.00024654,2]
[376646248,1754069467892,-1857.88,0.00024654,2]
[376646249,1754069467902,-460.0,0.00024654,2]
[376646250,1754069467911,-460.0,0.00024655,2]
[376646251,1754069467920,-899.72,0.00024655,2]
[376646252,1754069467930,-460.0,0.00024655,2]
[376646253,1754069467939,-824.68,0.00024655,2]
[376646254,1754069467948,-576.62,0.00024655,2]
[376646255,1754069467959,-584.83,0.00024655,2]
[376646256,1754069467968,-2037.08,0.00024655,2]
[376646257,1754069467978,-623.77,0.00024655,2]
[376646258,1754069467992,-477.02028944,0.00024656,2]
[376646259,1754069468002,-572.15,0.00024656,2]
[376646260,1754069468011,-558.46,0.00024656,2]
[376646261,1754069468020,-470.41,0.00024656,2]
[376646262,1754069468030,-460.0,0.00024656,2]
[376646263,1754069468039,-522.15,0.00024656,2]
[376646264,1754069468049,-3584.18,0.00024656,2]
[376646265,1754069468058,-460.0,0.00024656,2]
[376646266,1754069468067,-460.0,0.00024656,2]
[376646267,1754069468078,-3955.69,0.00024656,2]
[376646268,1754069468088,-554.16,0.00024656,2]
[376646269,1754069468098,-460.0,0.00024656,2]
[376646270,1754069468108,-460.0,0.00024656,2]
[376646271,1754069468118,-747.38,0.00024656,2]
[376646272,1754069468128,-1190.84,0.00024656,2]
[376646273,1754069468138,-1234.91,0.00024656,2]
[376646274,1754069468148,-574.19,0.00024656,2]
[376646275,1754069468158,-2698.82,0.00024656,2]
[376646276,1754069468170,-8054.32,0.00024656,2]
[376646277,1754069468179,-529.07,0.00024656,2]
[376646278,1754069468189,-4626.0,0.00024656,2]
[376646279,1754069468199,-1354.33,0.00024656,2]
[376646280,1754069468208,-610.0,0.00024657,10]
[376646281,1754069468218,-2097.27,0.00024657,10]
[376646282,1754069468228,-460.0,0.00024657,10]
[376646283,1754069468242,-740.85,0.00024657,10]
[376646284,1754069468251,-460.0,0.00024657,10]
[376646285,1754069468261,-573.73823735,0.00024657,10]
[376646286,1754069468271,-151.0,0.00024658,7]
[376646287,1754069468279,-151.0,0.00024658,7]
[376646288,1754069468289,-151.0,0.00024658,7]
[376646289,1754069468298,-151.0,0.00024658,7]
[376646290,1754069468307,-179.5856,0.00024658,7]
[376646291,1754069468318,-151.0,0.00024658,2]
[376646292,1754069468328,-213.0,0.000247,10]
[376646293,1754069468338,-306.87,0.00024738,7]
[376646294,1754069468348,-329.4,0.00024771,6]
[376646295,1754069468359,-305.10559489,0.00024797,11]
[376646296,1754069468369,-24710.72801681,0.000248,7]
[376646297,1754069468378,-276.7359756,0.000248,2]
[376646298,1754069468389,-561.33,0.00024828,2]
[376646299,1754069468399,-7885.76,0.00024829,2]
[376646300,1754069468409,-1256.44,0.00024829,2]
[376646301,1754069468420,-483.69,0.00024829,2]
[376646302,1754069468430,-460.0,0.00024829,2]
[376646303,1754069468439,-5790.7,0.00024829,2]
[376646304,1754069468449,-566.85596669,0.00024829,2]
[376646305,1754069468458,-460.0,0.00024829,2]
[376646306,1754069468467,-986.92,0.00024829,2]
[376646307,1754069468478,-976.82,0.00024829,2]
[376646308,1754069468494,-474.25,0.00024829,2]
[376646309,1754069468504,-1013.68,0.00024829,2]
[376646310,1754069468516,-3993.69,0.00024829,2]
[376646311,1754069468526,-1218.29,0.00024829,2]
[376646312,1754069468536,-562.37,0.00024829,2]
[376646313,1754069468546,-1133.95,0.00024829,2]
[376646314,1754069468556,-2061.59,0.00024829,2]
[376646315,1754069468565,-460.0,0.0002483,2]
[376646316,1754069468575,-484.4,0.0002483,2]
[376646317,1754069468584,-275.02,0.0002483,2]
[376646318,1754069468592,-460.0,0.0002483,2]
[376646319,1754069468603,-882.76,0.0002483,2]
[376646320,1754069468621,-1038.26,0.0002483,2]
[376646321,1754069468633,-460.0,0.0002483,2]
[376646322,1754069468643,-748.01,0.0002483,2]
[376646323,1754069468655,-565.8,0.0002483,2]
[376646324,1754069468665,-1629.59,0.0002483,2]
[376646325,1754069468676,-829.9,0.0002483,2]
[376646326,1754069468685,-1243.19,0.0002483,2]
[376646327,1754069468695,-575.44,0.0002483,2]
[376646328,1754069468705,-524.08,0.0002483,2]
[376646329,1754069468715,-620.6,0.0002483,2]
[376646330,1754069468725,-460.0,0.0002483,2]
[376646331,1754069468740,-460.0,0.0002483,2]
[376646332,1754069468750,-1277.87,0.0002483,2]
[376646333,1754069468760,-600.2,0.0002483,2]
[376646334,1754069468771,-266.78977484,0.0002483,2]
[376646335,1754069468781,-662.37,0.0002483,2]
[376646336,1754069468791,-1085.61,0.0002483,2]
[376646337,1754069468801,-3361.66,0.0002483,2]
[376646338,1754069468812,-460.0,0.0002483,2]
[376646339,1754069468822,-1453.73,0.0002483,2]
[376646340,1754069468832,-627.63,0.0002483,2]
[376646341,1754069468842,-1282.4,0.0002483,2]
[376646342,1754069468851,-479.84,0.0002483,2]
[376646343,1754069468862,-684.14,0.0002483,2]
[376646344,1754069468871,-2414.29,0.0002483,2]
[376646345,1754069468881,-199.81570721,0.0002483,2]
[376646346,1754069468891,-460.0,0.0002483,2]
[376646347,1754069468901,-1524.19,0.0002483,2]
[376646348,1754069468910,-888.76,0.0002483,2]
[376646349,1754069468920,-460.0,0.0002483,2]
[376646350,1754069468930,-582.9,0.0002483,2]
[376646351,1754069468940,-460.0,0.0002483,2]
[376646352,1754069468951,-2347.88,0.0002483,2]
[376646353,1754069468961,-611.3,0.0002483,2]
[376646354,1754069468971,-1083.92,0.0002483,2]
[376646355,1754069468981,-460.0,0.0002483,2]
[376646356,1754069468995,-1187.48,0.0002483,2]
[376646357,1754069469006,-191.5041827,0.0002483,2]
[376646358,1754069469016,-528.38,0.0002483,2]
[376646359,1754069469026,-923.87,0.0002483,2]
[376646360,1754069469036,-1074.14,0.0002483,2]
[376646361,1754069469046,-984.64,0.0002483,2]
[376646362,1754069469056,-306.87,0.00024838,7]
[376646363,1754069469066,-480.57127335,0.00024849,2]
[376646364,1754069469076,-597.3,0.000249,2]
[376646365,1754069469085,-404034.705542,0.000249,2]
[376646366,1754069469095,-883.33,0.00024926,2]
[376646367,1754069469104,-1123.48,0.00024926,2]
[376646368,1754069469114,-460.0,0.00024926,2]
[376646369,1754069469123,-689.92,0.00024926,2]
[376646370,1754069469132,-576.55,0.00024926,2]
[376646371,1754069469142,-563.4698182,0.00024926,2]
[376646372,1754069469151,-460.0,0.00024926,2]
[376646373,1754069469160,-1696.22,0.00024926,2]
[376646374,1754069469170,-1250.77,0.00024926,2]
[376646375,1754069469179,-1005.51,0.00024926,2]
[376646376,1754069469189,-460.0,0.00024926,2]
[376646377,1754069469199,-500.0,0.00024926,2]
[376646378,1754069469208,-590.71,0.00024926,2]
[376646379,1754069469217,-1647.05,0.00024926,2]
[376646380,1754069469227,-794.83,0.00024926,2]
[376646381,1754069469240,-460.0,0.00024926,2]
[376646382,1754069469249,-851.59,0.00024926,2]
[376646383,1754069469258,-460.0,0.00024926,2]
[376646384,1754069469267,-460.0,0.00024926,2]
[376646385,1754069469277,-848.84,0.00024928,2]
[376646386,1754069469286,-460.0,0.00024928,2]
[376646387,1754069469295,-2449.66,0.00024928,2]
[376646388,1754069469304,-480.66,0.00024928,2]
[376646389,1754069469313,-1857.88,0.00024928,2]
[376646390,1754069469323,-460.0,0.00024928,2]
[376646391,1754069469332,-460.0,0.00024929,2]
[376646392,1754069469341,-899.72,0.00024929,2]
[376646393,1754069469350,-460.0,0.00024929,2]
[376646394,1754069469360,-824.68,0.00024929,2]
[376646395,1754069469369,-576.62,0.00024929,2]
[376646396,1754069469379,-584.83,0.00024929,2]
[376646397,1754069469389,-2037.08,0.00024929,2]
[376646398,1754069469398,-623.77,0.00024929,2]
[376646399,1754069469408,-572.15,0.0002493,2]
[376646400,1754069469417,-558.46,0.0002493,2]
[376646401,1754069469426,-470.41,0.0002493,2]
[376646402,1754069469435,-460.0,0.0002493,2]
[376646403,1754069469444,-522.15,0.0002493,2]
[376646404,1754069469454,-3584.18,0.0002493,2]
[376646405,1754069469463,-460.0,0.0002493,2]
[376646406,1754069469472,-460.0,0.0002493,2]
[376646407,1754069469487,-3955.69,0.0002493,2]
[376646408,1754069469496,-554.16,0.0002493,2]
[376646409,1754069469506,-484.72752095,0.0002493,2]
[376646410,1754069469514,-747.38,0.0002493,2]
[376646411,1754069469523,-460.0,0.0002493,2]
[376646412,1754069469533,-1190.84,0.0002493,2]
[376646413,1754069469542,-1234.91,0.0002493,2]
[376646414,1754069469550,-574.19,0.0002493,2]
[376646415,1754069469561,-2698.82,0.0002493,2]
[376646416,1754069469570,-8054.32,0.0002493,2]
[376646417,1754069469580,-529.07,0.0002493,2]
[376646418,1754069469590,-4626.0,0.0002493,2]
[376646419,1754069469601,-1354.33,0.0002493,2]
[376646420,1754069469610,-610.0,0.00024931,10]
[376646421,1754069469619,-2097.27,0.00024931,10]
[376646422,1754069469629,-464.96029258,0.00024931,10]
[376646423,1754069469639,-740.85,0.00024931,10]
[376646424,1754069469648,-460.0,0.00024931,10]
[376646425,1754069469661,-151.0,0.00024932,2]
[376646426,1754069469670,-306.87,0.00024938,7]
[376646427,1754069469679,-152.85,0.00024986,2]
[376646428,1754069469689,-187.93420523,0.00025,30]
[376646429,1754069469698,-2257.33,0.00025,7]
[376646430,1754069469830,-305.10559489,0.00025003,12]
[376646431,1754069469840,-329.4,0.00025025,6]
[376646432,1754069469849,-306.87,0.00025038,7]
[376646433,1754069469859,-152.85,0.00025073,2]
[376646434,1754069469868,-360.0,0.00025097,2]
[376646435,1754069469877,-2911.7,0.000251,7]
[376646436,1754069469887,-6747.65,0.000251,7]
[376646437,1754069469896,-27742.23,0.000251,2]
[376646438,1754069469906,-561.33,0.00025102,2]
[376646439,1754069469915,-7885.76,0.00025103,2]
[376646440,1754069469925,-1256.44,0.00025103,2]
[376646441,1754069469934,-483.69,0.00025103,2]
[376646442,1754069469943,-460.0,0.00025103,2]
[376646443,1754069469952,-5790.7,0.00025103,2]
[376646444,1754069469962,-460.0,0.00025103,2]
[376646445,1754069469971,-986.92,0.00025103,2]
[376646446,1754069469981,-976.82,0.00025103,2]
[376646447,1754069469997,-474.25,0.00025103,2]
[376646448,1754069470007,-1013.68,0.00025103,2]
[376646449,1754069470017,-3993.69,0.00025103,2]
[376646450,1754069470027,-1218.29,0.00025103,2]
[376646451,1754069470036,-562.37,0.00025103,2]
[376646452,1754069470046,-1133.95,0.00025103,2]
[376646453,1754069470056,-2061.59,0.00025103,2]
[376646454,1754069470065,-460.0,0.00025104,2]
[376646455,1754069470075,-484.4,0.00025104,2]
[376646456,1754069470084,-489.53666046,0.00025104,2]
[376646457,1754069470093,-882.76,0.00025104,2]
[376646458,1754069470102,-1038.26,0.00025104,2]
[376646459,1754069470111,-460.0,0.00025104,2]
[376646460,1754069470120,-748.01,0.00025104,2]
[376646461,1754069470129,-565.8,0.00025104,2]
[376646462,1754069470138,-1629.59,0.00025104,2]
[376646463,1754069470147,-829.9,0.00025104,2]
[376646464,1754069470156,-1243.19,0.00025104,2]
[376646465,1754069470165,-575.44,0.00025104,2]
[376646466,1754069470174,-524.08,0.00025104,2]
[376646467,1754069470183,-620.6,0.00025104,2]
[376646468,1754069470192,-460.0,0.00025104,2]
[376646469,1754069470201,-460.0,0.00025104,2]
[376646470,1754069470210,-1277.87,0.00025104,2]
[376646471,1754069470219,-600.2,0.00025104,2]
[376646472,1754069470229,-1085.61,0.00025104,2]
[376646473,1754069470244,-3361.66,0.00025104,2]
[376646474,1754069470254,-662.37,0.00025104,2]
[376646475,1754069470263,-460.0,0.00025104,2]
[376646476,1754069470272,-1453.73,0.00025104,2]
[376646477,1754069470280,-627.63,0.00025104,2]
[376646478,1754069470290,-1282.4,0.00025104,2]
[376646479,1754069470299,-479.84,0.00025104,2]
[376646480,1754069470309,-684.14,0.00025104,2]
[376646481,1754069470319,-2414.29,0.00025104,2]
[376646482,1754069470327,-460.0,0.00025104,2]
[376646483,1754069470336,-1524.19,0.00025104,2]
[376646484,1754069470345,-888.76,0.00025104,2]
[376646485,1754069470354,-553.08760716,0.00025104,2]
[376646486,1754069470363,-582.9,0.00025104,2]
[376646487,1754069470372,-460.0,0.00025104,2]
[376646488,1754069470381,-2347.88,0.00025104,2]
[376646489,1754069470390,-611.3,0.00025104,2]
[376646490,1754069470400,-1083.92,0.00025104,2]
[376646491,1754069470409,-348.73921326,0.00025104,2]
[376646492,1754069470419,-1187.48,0.00025104,2]
[376646493,1754069470428,-528.38,0.00025104,2]
[376646494,1754069470438,-923.87,0.00025104,2]
[376646495,1754069470447,-1074.14,0.00025104,2]
[376646496,1754069470457,-984.64,0.00025104,2]
[376646497,1754069470466,-306.87,0.00025138,7]
[376646498,1754069470475,-153.0,0.00025143,2]
[376646499,1754069470487,-153.0,0.00025143,2]
[376646500,1754069470496,-153.0,0.00025143,2]
[376646501,1754069470505,-153.0,0.00025143,2]
[376646502,1754069470515,-153.0,0.00025143,2]
[376646503,1754069470524,-153.0,0.00025143,2]
[376646504,1754069470534,-153.0,0.00025143,2]
[376646505,1754069470543,-153.0,0.00025144,2]
[376646506,1754069470552,-153.0,0.00025144,2]
[376646507,1754069470561,-153.0,0.00025144,2]
[376646508,1754069470570,-153.0,0.00025144,2]
[376646509,1754069470579,-153.0,0.00025144,2]
[376646510,1754069470592,-153.0,0.00025144,2]
[376646511,1754069470601,-153.0,0.00025144,2]
[376646512,1754069470611,-153.0,0.00025144,2]
[376646513,1754069470621,-153.0,0.00025144,2]
[376646514,1754069470631,-153.0,0.0002515,2]
[376646515,1754069470642,-153.0,0.0002515,2]
[376646516,1754069470652,-153.0,0.0002515,2]
[376646517,1754069470663,-153.0,0.0002515,2]
[376646518,1754069470673,-153.0,0.0002515,2]
[376646519,1754069470683,-153.0,0.00025151,2]
[376646520,1754069470692,-153.0,0.00025151,2]
[376646521,1754069470701,-153.0,0.00025151,2]
[376646522,1754069470710,-153.0,0.00025151,2]
[376646523,1754069470719,-153.0,0.00025151,2]
[376646524,1754069470728,-153.0,0.00025151,2]
[376646525,1754069470740,-153.0,0.00025151,2]
[376646526,1754069470750,-153.0,0.00025151,2]
[376646527,1754069470759,-883.33,0.000252,2]
[376646528,1754069470769,-1123.48,0.000252,2]
[376646529,1754069470778,-460.0,0.000252,2]
[376646530,1754069470787,-689.92,0.000252,2]
[376646531,1754069470797,-576.55,0.000252,2]
[376646532,1754069470807,-460.0,0.000252,2]
[376646533,1754069470818,-1696.22,0.000252,2]
[376646534,1754069470827,-1250.77,0.000252,2]
[376646535,1754069470837,-1005.51,0.000252,2]
[376646536,1754069470846,-530.34694532,0.000252,2]
[376646537,1754069470856,-500.0,0.000252,2]
[376646538,1754069470865,-590.71,0.000252,2]
[376646539,1754069470875,-1647.05,0.000252,2]
[376646540,1754069470885,-794.83,0.000252,2]
[376646541,1754069470895,-602.17199929,0.000252,2]
[376646542,1754069470904,-851.59,0.000252,2]
[376646543,1754069470914,-460.0,0.000252,2]
[376646544,1754069470924,-460.0,0.000252,2]
[376646545,1754069470934,-848.84,0.00025202,2]
[376646546,1754069470943,-460.0,0.00025202,2]
[376646547,1754069470953,-2449.66,0.00025202,2]
[376646548,1754069470962,-480.66,0.00025202,2]
[376646549,1754069470974,-1857.88,0.00025202,2]
[376646550,1754069470986,-460.0,0.00025202,2]
[376646551,1754069470996,-460.0,0.00025203,2]
[376646552,1754069471006,-899.72,0.00025203,2]
[376646553,1754069471015,-460.0,0.00025203,2]
[376646554,1754069471024,-824.68,0.00025203,2]
[376646555,1754069471033,-576.62,0.00025203,2]
[376646556,1754069471043,-584.83,0.00025203,2]
[376646557,1754069471053,-2037.08,0.00025203,2]
[376646558,1754069471062,-623.77,0.00025203,2]
[376646559,1754069471071,-572.15,0.00025204,2]
[376646560,1754069471080,-558.46,0.00025204,2]
[376646561,1754069471089,-470.41,0.00025204,2]
[376646562,1754069471098,-460.0,0.00025204,2]
[376646563,1754069471107,-522.15,0.00025204,2]
[376646564,1754069471116,-3584.18,0.00025204,2]
[376646565,1754069471126,-460.0,0.00025204,2]
[376646566,1754069471136,-460.0,0.00025204,2]
[376646567,1754069471145,-3955.69,0.00025204,2]
[376646568,1754069471154,-554.16,0.00025204,2]
[376646569,1754069471164,-747.38,0.00025204,2]
[376646570,1754069471173,-460.0,0.00025204,2]
[376646571,1754069471182,-1190.84,0.00025204,2]
[376646572,1754069471191,-1234.91,0.00025204,2]
[376646573,1754069471200,-574.19,0.00025204,2]
[376646574,1754069471209,-2698.82,0.00025204,2]
[376646575,1754069471219,-8054.32,0.00025204,2]
[376646576,1754069471228,-529.07,0.00025204,2]
[376646577,1754069471241,-4626.0,0.00025204,2]
[376646578,1754069471251,-1354.33,0.00025204,2]
[376646579,1754069471260,-610.0,0.00025205,10]
[376646580,1754069471269,-2097.27,0.00025205,10]
[376646581,1754069471278,-740.85,0.00025205,10]
[376646582,1754069471290,-337.81644779,0.00025205,10]
[376646583,1754069471300,-151.0,0.00025206,2]
[376646584,1754069471309,-305.10559489,0.0002521,12]
[376646585,1754069471319,-480.57127335,0.00025221,2]
[376646586,1754069471327,-306.87,0.00025238,7]
[376646587,1754069471336,-232.49438452,0.00025263,2]
[376646588,1754069471346,-329.4,0.00025279,6]
[376646589,1754069471355,-306.87,0.00025338,7]
[376646590,1754069471365,-561.33,0.00025376,2]
[376646591,1754069471374,-7885.76,0.00025377,2]
[376646592,1754069471383,-1256.44,0.00025377,2]
[376646593,1754069471392,-483.69,0.00025377,2]
[376646594,1754069471402,-460.0,0.00025377,2]
[376646595,1754069471411,-5790.7,0.00025377,2]
[376646596,1754069471421,-460.0,0.00025377,2]
[376646597,1754069471430,-986.92,0.00025377,2]
[376646598,1754069471439,-976.82,0.00025377,2]
[376646599,1754069471448,-474.25,0.00025377,2]
[376646600,1754069471457,-1013.68,0.00025377,2]
[376646601,1754069471467,-3993.69,0.00025377,2]
[376646602,1754069471477,-1218.29,0.00025377,2]
[376646603,1754069471489,-562.37,0.00025377,2]
[376646604,1754069471499,-1133.95,0.00025377,2]
[376646605,1754069471606,-2061.59,0.00025377,2]
[376646606,1754069471615,-158.29596295,0.00025378,2]
[376646607,1754069471624,-484.4,0.00025378,2]
[376646608,1754069471634,-882.76,0.00025378,2]
[376646609,1754069471647,-1038.26,0.00025378,2]
[376646610,1754069471655,-460.0,0.00025378,2]
[376646611,1754069471665,-748.01,0.00025378,2]
[376646612,1754069471674,-565.8,0.00025378,2]
[376646613,1754069471683,-1629.59,0.00025378,2]
[376646614,1754069471692,-829.9,0.00025378,2]
[376646615,1754069471702,-1243.19,0.00025378,2]
[376646616,1754069471711,-575.44,0.00025378,2]
[376646617,1754069471722,-524.08,0.00025378,2]
[376646618,1754069471731,-620.6,0.00025378,2]
[376646619,1754069471744,-460.0,0.00025378,2]
[376646620,1754069471753,-460.0,0.00025378,2]
[376646621,1754069471762,-1277.87,0.00025378,2]
[376646622,1754069471772,-600.2,0.00025378,2]
[376646623,1754069471781,-1085.61,0.00025378,2]
[376646624,1754069471791,-3361.66,0.00025378,2]
[376646625,1754069471801,-662.37,0.00025378,2]
[376646626,1754069471811,-460.0,0.00025378,2]
[376646627,1754069471820,-1453.73,0.00025378,2]
[376646628,1754069471829,-627.63,0.00025378,2]
[376646629,1754069471839,-1282.4,0.00025378,2]
[376646630,1754069471849,-479.84,0.00025378,2]
[376646631,1754069471858,-2414.29,0.00025378,2]
[376646632,1754069471867,-684.14,0.00025378,2]
[376646633,1754069471876,-460.0,0.00025378,2]
[376646634,1754069471885,-1524.19,0.00025378,2]
[376646635,1754069471894,-888.76,0.00025378,2]
[376646636,1754069471903,-582.9,0.00025378,2]
[376646637,1754069471913,-2347.88,0.00025378,2]
[376646638,1754069471922,-460.0,0.00025378,2]
[376646639,1754069471931,-611.3,0.00025378,2]
[376646640,1754069471940,-1083.92,0.00025378,2]
[376646641,1754069471950,-1187.48,0.00025378,2]
[376646642,1754069471960,-528.38,0.00025378,2]
[376646643,1754069471969,-923.87,0.00025378,2]
[376646644,1754069471979,-1074.14,0.00025378,2]
[376646645,1754069471991,-984.64,0.00025378,2]
[376646646,1754069472001,-305.10559489,0.00025417,13]
[376646647,1754069472012,-306.87,0.00025438,7]
[376646648,1754069472021,-159.7702658,0.00025452,2]
[376646649,1754069472031,-883.33,0.00025474,2]
[376646650,1754069472040,-1123.48,0.00025474,2]
[376646651,1754069472049,-460.0,0.00025474,2]
[376646652,1754069472058,-689.92,0.00025474,2]
[376646653,1754069472067,-576.55,0.00025474,2]
[376646654,1754069472077,-541.33558072,0.00025474,2]
[376646655,1754069472086,-1696.22,0.00025474,2]
[376646656,1754069472096,-1250.77,0.00025474,2]
[376646657,1754069472110,-1005.51,0.00025474,2]
[376646658,1754069472119,-500.0,0.00025474,2]
[376646659,1754069472128,-590.71,0.00025474,2]
[376646660,1754069472138,-1647.05,0.00025474,2]
[376646661,1754069472146,-794.83,0.00025474,2]
[376646662,1754069472156,-851.59,0.00025474,2]
[376646663,1754069472165,-460.0,0.00025474,2]
[376646664,1754069472175,-460.0,0.00025474,2]
[376646665,1754069472184,-848.84,0.00025476,2]
[376646666,1754069472195,-460.0,0.00025476,2]
[376646667,1754069472215,-2449.66,0.00025476,2]
[376646668,1754069472238,-480.66,0.00025476,2]
[376646669,1754069472256,-1857.88,0.00025476,2]
[376646670,1754069472265,-276.36147129,0.00025476,2]
[376646671,1754069472274,-460.0,0.00025477,2]
[376646672,1754069472283,-899.72,0.00025477,2]
[376646673,1754069472292,-460.0,0.00025477,2]
[376646674,1754069472301,-824.68,0.00025477,2]
[376646675,1754069472311,-576.62,0.00025477,2]
[376646676,1754069472320,-584.83,0.00025477,2]
[376646677,1754069472330,-2037.08,0.00025477,2]
[376646678,1754069472340,-623.77,0.00025477,2]